fUSD/lending_fUSD_20260513
["ID","MTS","AMOUNT","RATE_DAILY","PERIOD"]
[422174959,1778647842000,-468.354673,0.00037595,10]
[422175045,1778647843000,-500.0,0.00038356,2]
[422175040,1778647843000,-500.0,0.00038356,2]
[422175038,1778647843000,-500.0,0.00038356,2]
[422175048,1778647843000,-932.48183126,0.00038356,7]
[422175034,1778647843000,-938.36,0.00038356,2]
[422175037,1778647843000,-500.0,0.00038356,2]
[422175035,1778647843000,-938.36,0.00038356,2]
[422175036,1778647843000,-938.4374828,0.00038356,2]
[422175039,1778647843000,-500.0,0.00038356,2]
[422175031,1778647843000,-938.36,0.00038356,2]
[422175047,1778647843000,-1000.0,0.00038356,7]
[422175033,1778647843000,-938.36,0.00038356,2]
[422175052,1778647843000,-217.0,0.00038356,120]
[422175041,1778647843000,-500.0,0.00038356,2]
[422175042,1778647843000,-500.0,0.00038356,2]
[422175043,1778647843000,-500.0,0.00038356,2]
[422175046,1778647843000,-458.37215967,0.00038356,2]
[422175049,1778647843000,-1000.0,0.00038356,7]
[422175056,1778647843000,-16779.8314,0.00038452,30]
[422175058,1778647843000,-929.64,0.00038483,2]
[422175053,1778647843000,-385.59,0.00038356,120]
[422175050,1778647843000,-250.0,0.00038356,120]
[422175057,1778647843000,-811.47,0.00038477,30]
[422175051,1778647843000,-250.0,0.00038356,120]
[422175030,1778647843000,-938.36,0.00038356,2]
[422175055,1778647843000,-375.42,0.000384,30]
[422175044,1778647843000,-500.0,0.00038356,2]
[422175032,1778647843000,-938.36,0.00038356,2]
[422175019,1778647843000,-938.36,0.00038356,2]
[422175026,1778647843000,-938.36,0.00038356,2]
[422175054,1778647843000,-150.0,0.00038398,7]
[422175000,1778647843000,-500.0,0.00038356,2]
[422175001,1778647843000,-500.0,0.00038356,2]
[422175004,1778647843000,-500.0,0.00038356,2]
[422175003,1778647843000,-500.0,0.00038356,2]
[422175005,1778647843000,-500.0,0.00038356,2]
[422175007,1778647843000,-415.69729798,0.00038356,2]
[422175008,1778647843000,-500.0,0.00038356,2]
[422175006,1778647843000,-500.0,0.00038356,2]
[422175010,1778647843000,-500.0,0.00038356,2]
[422175011,1778647843000,-500.0,0.00038356,2]
[422175009,1778647843000,-500.0,0.00038356,2]
[422175016,1778647843000,-938.36,0.00038356,2]
[422175017,1778647843000,-938.36,0.00038356,2]
[422175013,1778647843000,-938.36,0.00038356,2]
[422175018,1778647843000,-938.36,0.00038356,2]
[422175012,1778647843000,-407.19620485,0.00038356,2]
[422175014,1778647843000,-938.36,0.00038356,2]
[422175020,1778647843000,-938.36,0.00038356,2]
[422175015,1778647843000,-938.36,0.00038356,2]
[422175021,1778647843000,-938.36,0.00038356,2]
[422175022,1778647843000,-938.36,0.00038356,2]
[422175023,1778647843000,-938.36,0.00038356,2]
[422175024,1778647843000,-938.36,0.00038356,2]
[422175029,1778647843000,-938.36,0.00038356,2]
[422175025,1778647843000,-938.36,0.00038356,2]
[422175027,1778647843000,-938.36,0.00038356,2]
[422175028,1778647843000,-938.36,0.00038356,2]
[422175059,1778647843000,-929.64,0.00038483,2]
[422175002,1778647843000,-500.0,0.00038356,2]
[422175061,1778647843000,-929.64,0.00038485,2]
[422175101,1778647843000,-227.62219014,0.000392,30]
[422175100,1778647843000,-1000.0,0.00039183,2]
[422175092,1778647843000,-241.86,0.00038964,120]
[422175094,1778647843000,-2112.52090565,0.00039,30]
[422175096,1778647843000,-2112.52090564,0.00039,30]
[422175103,1778647843000,-206.4843587,0.00039232,120]
[422175104,1778647843000,-159.0818048,0.00039232,120]
[422175102,1778647843000,-150.0,0.00039223,7]
[422175105,1778647843000,-40440.0,0.00039236,120]
[422175107,1778647843000,-1380.21,0.00039333,120]
[422175112,1778647843000,-241.86,0.00039464,120]
[422175113,1778647843000,-375.42,0.000395,30]
[422175106,1778647843000,-241.86,0.00039264,120]
[422175111,1778647843000,-375.42,0.000394,30]
[422175110,1778647843000,-270.0,0.00039375,120]
[422175108,1778647843000,-241.86,0.00039364,120]
[422175109,1778647843000,-40440.0,0.00039375,120]
[422175114,1778647843000,-1279.01,0.000395,14]
[422175115,1778647843000,-40440.0,0.00039514,120]
[422175116,1778647843000,-481.61290596,0.00039526,2]
[422175117,1778647843000,-241.86,0.00039564,120]
[422175120,1778647843000,-150.0,0.00039636,7]
[422175119,1778647843000,-40324.0,0.00039586,120]
[422175121,1778647843000,-150.0,0.00039636,7]
[422175118,1778647843000,-1000.0,0.00039575,120]
[422175122,1778647843000,-40440.0,0.00039653,120]
[422175060,1778647843000,-929.64,0.00038485,2]
[422175097,1778647843000,-241.86,0.00039064,120]
[422175098,1778647843000,-40440.0,0.00039097,120]
[422175123,1778647843000,-1380.25,0.0003966,120]
[422175099,1778647843000,-241.86,0.00039164,120]
[422175095,1778647843000,-2112.52090564,0.00039,30]
[422175065,1778647843000,-929.64,0.00038487,2]
[422175067,1778647843000,-241.86,0.00038664,120]
[422175068,1778647843000,-184.09,0.00038664,30]
[422175066,1778647843000,-40440.0,0.00038541,120]
[422175069,1778647843000,-151.0,0.00038677,14]
[422175062,1778647843000,-929.64,0.00038485,2]
[422175063,1778647843000,-929.67,0.00038487,2]
[422175070,1778647843000,-40440.0,0.0003868,120]
[422175071,1778647843000,-1083.54230196,0.00038688,20]
[422175074,1778647843000,-1122.29282681,0.00038688,20]
[422175072,1778647843000,-1078.16808713,0.00038688,20]
[422175073,1778647843000,-1054.27337715,0.00038688,20]
[422175064,1778647843000,-929.64,0.00038487,2]
[422175075,1778647843000,-1092.75351079,0.00038688,20]
[422175093,1778647843000,-153.15555939,0.00039,2]
[422175090,1778647843000,-182.0,0.00038904,15]
[422175091,1778647843000,-40440.0,0.00038958,120]
[422175088,1778647843000,-2000.0,0.000389,7]
[422175076,1778647843000,-1007.12635269,0.00038688,20]
[422175084,1778647843000,-40440.0,0.00038819,120]
[422175089,1778647843000,-508.0,0.00038902,17]
[422175082,1778647843000,-150.0,0.0003881,7]
[422175085,1778647843000,-241.86,0.00038864,120]
[422175078,1778647843000,-1232.24641317,0.00038688,20]
[422175079,1778647843000,-241.86,0.00038764,120]
[422175077,1778647843000,-1070.1456007,0.00038688,20]
[422175080,1778647843000,-150.0,0.0003881,7]
[422175164,1778647844000,-241.86,0.00039864,120]
[422175162,1778647844000,-152.16764211,0.00039823,2]
[422175159,1778647844000,-182.28881612,0.00039823,2]
[422175160,1778647844000,-154.28449056,0.00039823,2]
[422175154,1778647844000,-169.11145862,0.00039823,2]
[422175155,1778647844000,-158.59507513,0.00039823,2]
[422175161,1778647844000,-168.98179061,0.00039823,2]
[422175157,1778647844000,-204.64176081,0.00039823,2]
[422175156,1778647844000,-172.64694977,0.00039823,2]
[422175158,1778647844000,-165.95230167,0.00039823,2]
[422175163,1778647844000,-40324.0,0.00039853,120]
[422175169,1778647844000,-40324.0,0.00039986,120]
[422175171,1778647844000,-189.0,0.0003999,11]
[422175167,1778647844000,-40440.0,0.00039931,120]
[422175170,1778647844000,-1380.25,0.00039987,120]
[422175166,1778647844000,-157.64447408,0.0003989,2]
[422175168,1778647844000,-241.86,0.00039964,120]
[422175172,1778647844000,-345.26686553,0.0004,30]
[422175174,1778647844000,-153.0,0.0004,30]
[422175173,1778647844000,-151.0,0.0004,120]
[422175175,1778647844000,-163.0,0.0004,120]
[422175177,1778647844000,-241.86,0.00040064,120]
[422175176,1778647844000,-150.0,0.00040049,7]
[422175152,1778647844000,-153.52917932,0.00039823,2]
[422175165,1778647844000,-811.47,0.00039884,30]
[422175153,1778647844000,-186.03685841,0.00039823,2]
[422175139,1778647844000,-190.78006946,0.00039823,2]
[422175146,1778647844000,-197.94495994,0.00039823,2]
[422175183,1778647844000,-150.0,0.00040073,2]
[422175124,1778647844000,-241.86,0.00039664,120]
[422175126,1778647844000,-10987.22385288,0.00039664,2]
[422175125,1778647844000,-178.31621022,0.00039664,2]
[422175128,1778647844000,-150.0,0.00039669,2]
[422175127,1778647844000,-1703.57674179,0.00039664,2]
[422175129,1778647844000,-40324.0,0.00039719,120]
[422175130,1778647844000,-241.86,0.00039764,120]
[422175132,1778647844000,-40440.0,0.00039792,120]
[422175131,1778647844000,-2310.0,0.00039764,11]
[422175134,1778647844000,-173.20087497,0.00039823,2]
[422175137,1778647844000,-177.38310581,0.00039823,2]
[422175151,1778647844000,-171.97690867,0.00039823,2]
[422175135,1778647844000,-153.4771508,0.00039823,2]
[422175133,1778647844000,-266.37033094,0.00039823,2]
[422175138,1778647844000,-219.77496672,0.00039823,2]
[422175140,1778647844000,-195.80539251,0.00039823,2]
[422175141,1778647844000,-180.37935288,0.00039823,2]
[422175142,1778647844000,-181.13073485,0.00039823,2]
[422175145,1778647844000,-179.9471737,0.00039823,2]
[422175148,1778647844000,-176.62766387,0.00039823,2]
[422175147,1778647844000,-185.8730972,0.00039823,2]
[422175144,1778647844000,-177.36134302,0.00039823,2]
[422175149,1778647844000,-152.7309979,0.00039823,2]
[422175143,1778647844000,-190.3096074,0.00039823,2]
[422175150,1778647844000,-152.31502387,0.00039823,2]
[422175136,1778647844000,-177.03162193,0.00039823,2]
[422175180,1778647844000,-150.0,0.00040073,2]
[422175178,1778647844000,-40440.0,0.0004007,120]
[422175181,1778647844000,-150.0,0.00040073,2]
[422175211,1778647844000,-375.42,0.000404,30]
[422175213,1778647844000,-150.0,0.00040462,7]
[422175215,1778647844000,-241.86,0.00040464,120]
[422175217,1778647844000,-40440.0,0.00040487,120]
[422175216,1778647844000,-181.62,0.00040481,120]
[422175219,1778647844000,-23444.15,0.000405,2]
[422175218,1778647844000,-151.0,0.000405,120]
[422175221,1778647844000,-40324.0,0.0004052,120]
[422175220,1778647844000,-202.0,0.000405,2]
[422175224,1778647844000,-1279.01,0.000406,14]
[422175222,1778647844000,-241.86,0.00040564,120]
[422175223,1778647844000,-1142.31653078,0.00040575,120]
[422175227,1778647844000,-40440.0,0.00040626,120]
[422175226,1778647844000,-2374.0,0.0004062,11]
[422175231,1778647844000,-241.86,0.00040664,120]
[422175230,1778647844000,-40324.0,0.00040654,120]
[422175228,1778647844000,-184.14,0.00040636,30]
[422175229,1778647844000,-1380.25,0.00040641,120]
[422175232,1778647844000,-375.42,0.000407,30]
[422175233,1778647844000,-481.61290596,0.00040713,2]
[422175234,1778647844000,-175.45,0.0004075,120]
[422175237,1778647844000,-40440.0,0.00040765,120]
[422175236,1778647844000,-241.86,0.00040764,120]
[422175235,1778647844000,-174.54,0.0004075,120]
[422175182,1778647844000,-150.0,0.00040073,2]
[422175212,1778647844000,-3796.6848066,0.00040403,12]
[422175214,1778647844000,-150.0,0.00040462,7]
[422175225,1778647844000,-1500.0,0.000406,35]
[422175210,1778647844000,-40324.0,0.00040387,120]
[422175179,1778647844000,-150.0,0.00040073,2]
[422175206,1778647844000,-40440.0,0.00040348,120]
[422175187,1778647844000,-2961.03357587,0.00040096,2]
[422175184,1778647844000,-175.0,0.00040073,2]
[422175188,1778647844000,-23444.15,0.000401,2]
[422175186,1778647844000,-1185.0,0.00040096,5]
[422175185,1778647844000,-3161.985,0.00040075,2]
[422175190,1778647844000,-40324.0,0.0004012,120]
[422175189,1778647844000,-508.0,0.00040111,18]
[422175193,1778647844000,-23444.15,0.000402,2]
[422175192,1778647844000,-241.86,0.00040164,120]
[422175194,1778647844000,-40440.0,0.00040209,120]
[422175196,1778647844000,-188.0,0.00040209,120]
[422175191,1778647844000,-231.0,0.00040164,120]
[422175198,1778647844000,-241.86,0.00040264,120]
[422175209,1778647844000,-241.86,0.00040364,120]
[422175208,1778647844000,-288.0,0.00040364,120]
[422175205,1778647844000,-772.48506324,0.00040333,120]
[422175203,1778647844000,-104370.1553964,0.00040333,2]
[422175204,1778647844000,-7440.4655698,0.00040333,2]
[422175202,1778647844000,-1380.25,0.00040314,120]
[422175207,1778647844000,-500.0,0.00040355,60]
[422175201,1778647844000,-23444.15,0.000403,2]
[422175200,1778647844000,-1105.01,0.0004029,60]
[422175195,1778647844000,-150.0,0.00040209,120]
[422175197,1778647844000,-40324.0,0.00040253,120]
[422175199,1778647844000,-4074.12,0.0004029,60]
[422175293,1778647845000,-699.0,0.00041096,120]
[422175283,1778647845000,-699.0,0.00041096,120]
[422175281,1778647845000,-699.0,0.00041096,120]
[422175282,1778647845000,-699.0,0.00041096,120]
[422175280,1778647845000,-699.0,0.00041096,120]
[422175278,1778647845000,-699.0,0.00041096,120]
[422175276,1778647845000,-177.95686387,0.00041096,120]
[422175277,1778647845000,-5800.0,0.00041096,14]
[422175273,1778647845000,-187.0,0.00041096,120]
[422175275,1778647845000,-177.95686388,0.00041096,120]
[422175272,1778647845000,-7286.41143069,0.00041095,5]
[422175274,1778647845000,-186.10244267,0.00041096,120]
[422175279,1778647845000,-699.0,0.00041096,120]
[422175288,1778647845000,-699.0,0.00041096,120]
[422175305,1778647845000,-150.0,0.000411,10]
[422175285,1778647845000,-699.0,0.00041096,120]
[422175290,1778647845000,-699.0,0.00041096,120]
[422175286,1778647845000,-699.0,0.00041096,120]
[422175291,1778647845000,-699.0,0.00041096,120]
[422175284,1778647845000,-699.0,0.00041096,120]
[422175294,1778647845000,-699.0,0.00041096,120]
[422175287,1778647845000,-699.0,0.00041096,120]
[422175289,1778647845000,-699.0,0.00041096,120]
[422175295,1778647845000,-699.0,0.00041096,120]
[422175297,1778647845000,-699.0,0.00041096,120]
[422175296,1778647845000,-699.0,0.00041096,120]
[422175302,1778647845000,-151.0,0.000411,120]
[422175270,1778647845000,-733.52468526,0.00041087,15]
[422175292,1778647845000,-699.0,0.00041096,120]
[422175271,1778647845000,-5800.0,0.00041088,14]
[422175239,1778647845000,-1703.57674178,0.00040782,2]
[422175267,1778647845000,-288.27372899,0.00041052,2]
[422175240,1778647845000,-40324.0,0.00040787,120]
[422175238,1778647845000,-10987.22385287,0.00040782,2]
[422175241,1778647845000,-23444.15,0.000408,2]
[422175242,1778647845000,-22093.0,0.000408,120]
[422175243,1778647845000,-849.0275875,0.00040842,90]
[422175245,1778647845000,-241.86,0.00040864,120]
[422175249,1778647845000,-40440.0,0.00040904,120]
[422175246,1778647845000,-150.0,0.00040875,7]
[422175247,1778647845000,-291.57,0.00040892,120]
[422175248,1778647845000,-201.97,0.000409,17]
[422175250,1778647845000,-847.95819,0.0004092,120]
[422175244,1778647845000,-10274.9751,0.0004085,2]
[422175251,1778647845000,-847.9582,0.0004092,120]
[422175254,1778647845000,-847.9582,0.0004092,120]
[422175252,1778647845000,-847.9582,0.0004092,120]
[422175253,1778647845000,-847.95819,0.0004092,120]
[422175256,1778647845000,-163.0,0.0004094,11]
[422175255,1778647845000,-40324.0,0.00040921,120]
[422175257,1778647845000,-255343.0,0.0004095,60]
[422175260,1778647845000,-1380.25,0.00040967,120]
[422175264,1778647845000,-1117.03,0.00041,120]
[422175263,1778647845000,-156.87904102,0.00041,30]
[422175266,1778647845000,-40455.0,0.00041043,120]
[422175268,1778647845000,-40325.0,0.00041054,120]
[422175259,1778647845000,-241.86,0.00040964,120]
[422175265,1778647845000,-10000.0,0.00041,42]
[422175262,1778647845000,-414.20787342,0.00041,30]
[422175258,1778647845000,-1000.0,0.00040957,90]
[422175261,1778647845000,-1000.0,0.00040986,90]
[422175269,1778647845000,-241.86,0.00041064,120]
[422175304,1778647845000,-205.20210153,0.000411,120]
[422175300,1778647845000,-699.0,0.00041096,120]
[422175301,1778647845000,-704.04223233,0.00041096,120]
[422175340,1778647845000,-276.303252,0.00041182,120]
[422175339,1778647845000,-151.0,0.00041182,30]
[422175338,1778647845000,-276.303252,0.00041182,120]
[422175342,1778647845000,-151.0,0.00041182,120]
[422175341,1778647845000,-276.303252,0.00041182,120]
[422175343,1778647845000,-294.141546,0.00041182,120]
[422175344,1778647845000,-165.541983,0.00041182,10]
[422175345,1778647845000,-167.106781,0.00041182,120]
[422175347,1778647845000,-749.321439,0.00041182,120]
[422175346,1778647845000,-749.321439,0.00041182,120]
[422175351,1778647845000,-749.321439,0.00041182,120]
[422175358,1778647845000,-151.0,0.00041182,120]
[422175354,1778647845000,-151.0,0.00041182,120]
[422175349,1778647845000,-749.321439,0.00041182,120]
[422175359,1778647845000,-151.0,0.00041182,120]
[422175357,1778647845000,-259.361985,0.00041182,120]
[422175356,1778647845000,-151.0,0.00041182,120]
[422175348,1778647845000,-151.0,0.00041182,120]
[422175350,1778647845000,-151.0,0.00041182,120]
[422175353,1778647845000,-182.856679,0.00041182,120]
[422175355,1778647845000,-151.0,0.00041182,120]
[422175352,1778647845000,-151.0,0.00041182,120]
[422175361,1778647845000,-170.7605984,0.00041192,120]
[422175360,1778647845000,-160.3,0.00041187,2]
[422175362,1778647845000,-1000.0,0.00041218,120]
[422175366,1778647845000,-202.22716138,0.00041221,2]
[422175363,1778647845000,-201.07900277,0.00041221,2]
[422175365,1778647845000,-532.74066187,0.00041221,2]
[422175307,1778647845000,-1500.0,0.000411,35]
[422175337,1778647845000,-151.0,0.00041182,30]
[422175336,1778647845000,-276.303252,0.00041182,120]
[422175364,1778647845000,-192.71997781,0.00041221,2]
[422175334,1778647845000,-227.602348,0.00041182,120]
[422175335,1778647845000,-227.602348,0.00041182,120]
[422175306,1778647845000,-314.0,0.000411,30]
[422175303,1778647845000,-218.99621838,0.000411,120]
[422175299,1778647845000,-699.0,0.00041096,120]
[422175308,1778647845000,-308.0,0.000411,30]
[422175310,1778647845000,-1000.0,0.0004111,120]
[422175311,1778647845000,-1000.0,0.0004111,120]
[422175309,1778647845000,-176.41159487,0.000411,120]
[422175313,1778647845000,-1000.0,0.00041175,120]
[422175316,1778647845000,-150.0,0.00041178,30]
[422175314,1778647845000,-150.0,0.00041178,30]
[422175312,1778647845000,-241.86,0.00041164,120]
[422175319,1778647845000,-297.69312479,0.00041178,30]
[422175318,1778647845000,-150.0,0.00041178,30]
[422175315,1778647845000,-670.94307655,0.00041178,30]
[422175298,1778647845000,-699.0,0.00041096,120]
[422175317,1778647845000,-3982.31042882,0.00041178,30]
[422175321,1778647845000,-250452.0,0.00041182,120]
[422175329,1778647845000,-151.0,0.00041182,120]
[422175328,1778647845000,-151.0,0.00041182,120]
[422175327,1778647845000,-213.4193,0.00041182,120]
[422175331,1778647845000,-161.197381,0.00041182,120]
[422175326,1778647845000,-151.0,0.00041182,120]
[422175330,1778647845000,-151.0,0.00041182,120]
[422175324,1778647845000,-193.409528,0.00041182,120]
[422175320,1778647845000,-151.0,0.00041179,14]
[422175333,1778647845000,-227.602348,0.00041182,120]
[422175323,1778647845000,-151.0,0.00041182,120]
[422175332,1778647845000,-227.602348,0.00041182,120]
[422175322,1778647845000,-160.24068,0.00041182,120]
[422175325,1778647845000,-151.0,0.00041182,120]
[422175405,1778647846000,-245.73647083,0.00041221,2]
[422175399,1778647846000,-307.05835863,0.00041221,2]
[422175400,1778647846000,-338.22291723,0.00041221,2]
[422175398,1778647846000,-343.95381734,0.00041221,2]
[422175404,1778647846000,-409.28352162,0.00041221,2]
[422175406,1778647846000,-331.90460333,0.00041221,2]
[422175409,1778647846000,-337.96358121,0.00041221,2]
[422175402,1778647846000,-317.19015026,0.00041221,2]
[422175403,1778647846000,-345.29389954,0.00041221,2]
[422175401,1778647846000,-372.07371682,0.00041221,2]
[422175395,1778647846000,-304.63004774,0.00041221,2]
[422175407,1778647846000,-364.57763224,0.00041221,2]
[422175413,1778647846000,-156.37868536,0.00041221,2]
[422175411,1778647846000,-304.33528423,0.00041221,2]
[422175410,1778647846000,-172.06516686,0.00041221,2]
[422175412,1778647846000,-245.91741695,0.00041221,2]
[422175414,1778647846000,-200.72779812,0.00041221,2]
[422175415,1778647846000,-162.226956,0.00041221,120]
[422175416,1778647846000,-162.226956,0.00041221,120]
[422175417,1778647846000,-162.226956,0.00041221,120]
[422175418,1778647846000,-162.226956,0.00041221,120]
[422175419,1778647846000,-348.961651,0.00041221,120]
[422175420,1778647846000,-472.848313,0.00041221,120]
[422175396,1778647846000,-170.33659116,0.00041221,2]
[422175423,1778647846000,-348.961651,0.00041221,120]
[422175408,1778647846000,-308.56898111,0.00041221,2]
[422175397,1778647846000,-173.50968562,0.00041221,2]
[422175383,1778647846000,-354.72268604,0.00041221,2]
[422175391,1778647846000,-173.29936154,0.00041221,2]
[422175422,1778647846000,-472.848313,0.00041221,120]
[422175370,1778647846000,-201.9156998,0.00041221,2]
[422175367,1778647846000,-188.32397394,0.00041221,2]
[422175368,1778647846000,-174.62941433,0.00041221,2]
[422175369,1778647846000,-192.05676398,0.00041221,2]
[422175371,1778647846000,-346.40174994,0.00041221,2]
[422175373,1778647846000,-192.88424567,0.00041221,2]
[422175372,1778647846000,-306.95430161,0.00041221,2]
[422175374,1778647846000,-354.06324386,0.00041221,2]
[422175381,1778647846000,-168.09619715,0.00041221,2]
[422175377,1778647846000,-439.54993344,0.00041221,2]
[422175378,1778647846000,-381.56013891,0.00041221,2]
[422175394,1778647846000,-193.74488782,0.00041221,2]
[422175375,1778647846000,-354.76621163,0.00041221,2]
[422175379,1778647846000,-391.61078502,0.00041221,2]
[422175376,1778647846000,-173.807093,0.00041221,2]
[422175380,1778647846000,-360.75870576,0.00041221,2]
[422175384,1778647846000,-359.8943474,0.00041221,2]
[422175386,1778647846000,-200.36443047,0.00041221,2]
[422175387,1778647846000,-395.88991988,0.00041221,2]
[422175385,1778647846000,-200.41664357,0.00041221,2]
[422175388,1778647846000,-371.74619441,0.00041221,2]
[422175389,1778647846000,-353.25532774,0.00041221,2]
[422175390,1778647846000,-305.46199579,0.00041221,2]
[422175393,1778647846000,-200.66683779,0.00041221,2]
[422175392,1778647846000,-183.34654027,0.00041221,2]
[422175382,1778647846000,-380.6192148,0.00041221,2]
[422175421,1778647846000,-348.961651,0.00041221,120]
[422175426,1778647846000,-472.848313,0.00041221,120]
[422175428,1778647846000,-186.92,0.00041233,120]
[422175457,1778647846000,-161.451938,0.00041274,120]
[422175455,1778647846000,-289.443261,0.00041274,120]
[422175458,1778647846000,-289.443261,0.00041274,120]
[422175460,1778647846000,-151.0,0.00041274,120]
[422175462,1778647846000,-151.0,0.00041274,120]
[422175464,1778647846000,-151.0,0.00041274,7]
[422175463,1778647846000,-151.0,0.00041274,120]
[422175461,1778647846000,-151.0,0.00041274,120]
[422175465,1778647846000,-151.0,0.00041274,7]
[422175467,1778647846000,-215.596504,0.00041274,7]
[422175468,1778647846000,-1341.707239,0.00041274,28]
[422175472,1778647846000,-151.0,0.00041274,120]
[422175459,1778647846000,-289.443261,0.00041274,120]
[422175471,1778647846000,-1341.707239,0.00041274,28]
[422175470,1778647846000,-1341.707239,0.00041274,28]
[422175475,1778647846000,-151.0,0.00041274,120]
[422175478,1778647846000,-226.31751,0.00041274,120]
[422175479,1778647846000,-226.31751,0.00041274,120]
[422175474,1778647846000,-151.0,0.00041274,120]
[422175476,1778647846000,-226.31751,0.00041274,120]
[422175477,1778647846000,-259.148107,0.00041274,120]
[422175473,1778647846000,-151.0,0.00041274,120]
[422175480,1778647846000,-226.31751,0.00041274,120]
[422175481,1778647846000,-151.0,0.00041274,30]
[422175483,1778647846000,-151.0,0.00041274,30]
[422175427,1778647846000,-151.0,0.00041221,120]
[422175469,1778647846000,-1341.707239,0.00041274,28]
[422175456,1778647846000,-289.443261,0.00041274,120]
[422175482,1778647846000,-493.245132,0.00041274,120]
[422175449,1778647846000,-207.51476,0.00041248,120]
[422175454,1778647846000,-25000.0,0.00041265,15]
[422175424,1778647846000,-472.848313,0.00041221,120]
[422175425,1778647846000,-348.961651,0.00041221,120]
[422175430,1778647846000,-186.94,0.00041233,120]
[422175429,1778647846000,-186.92,0.00041233,120]
[422175432,1778647846000,-25000.0,0.00041248,15]
[422175435,1778647846000,-168.037396,0.00041248,60]
[422175431,1778647846000,-1000.0,0.00041237,120]
[422175433,1778647846000,-1170.488914,0.00041248,7]
[422175438,1778647846000,-151.0,0.00041248,120]
[422175434,1778647846000,-1170.488914,0.00041248,7]
[422175440,1778647846000,-151.0,0.00041248,120]
[422175437,1778647846000,-1170.488914,0.00041248,7]
[422175439,1778647846000,-151.0,0.00041248,120]
[422175441,1778647846000,-151.0,0.00041248,120]
[422175452,1778647846000,-25000.0,0.00041257,15]
[422175436,1778647846000,-1170.488914,0.00041248,7]
[422175453,1778647846000,-241.86,0.00041264,120]
[422175451,1778647846000,-178.04,0.0004125,120]
[422175448,1778647846000,-178.384317,0.00041248,120]
[422175450,1778647846000,-151.0,0.00041248,120]
[422175446,1778647846000,-151.0,0.00041248,120]
[422175445,1778647846000,-178.384317,0.00041248,120]
[422175447,1778647846000,-178.384317,0.00041248,120]
[422175444,1778647846000,-151.0,0.00041248,120]
[422175442,1778647846000,-178.384317,0.00041248,120]
[422175443,1778647846000,-151.0,0.00041248,120]
[422175525,1778647847000,-1558.315031,0.00041283,20]
[422175527,1778647847000,-176.979772,0.00041283,120]
[422175524,1778647847000,-1558.315031,0.00041283,20]
[422175528,1778647847000,-500.0,0.00041283,60]
[422175523,1778647847000,-1558.315031,0.00041283,20]
[422175506,1778647847000,-975.595225,0.00041276,120]
[422175521,1778647847000,-150.0,0.00041283,2]
[422175522,1778647847000,-899.27097149,0.00041283,2]
[422175518,1778647847000,-1498.34566035,0.00041283,2]
[422175517,1778647847000,-150.0,0.00041283,2]
[422175519,1778647847000,-150.0,0.00041283,2]
[422175520,1778647847000,-14427.46311805,0.00041283,2]
[422175526,1778647847000,-1558.315031,0.00041283,20]
[422175541,1778647847000,-500.0,0.00041283,60]
[422175530,1778647847000,-500.0,0.00041283,60]
[422175532,1778647847000,-500.0,0.00041283,60]
[422175542,1778647847000,-500.0,0.00041283,60]
[422175543,1778647847000,-500.0,0.00041283,60]
[422175544,1778647847000,-500.0,0.00041283,60]
[422175533,1778647847000,-500.0,0.00041283,60]